bitfinex-derivatives/quotes_ETHF0:USTF0_20250101
["timestamp","ask_amount","ask_price","bid_price","bid_amount"]
[1735738952676,0.4582,3339.7,3339.4,5.57563261]
[1735738952876,0.73882,3339.6,3339.5,0.30002]
[1735738955073,0.30002,3339.6,3339.5,0.30002]
[1735738955275,4.86287,3340.0,3339.4,0.8792]
[1735738955572,0.3,3339.9,3339.8,0.29999]
[1735738955969,0.30002,3339.7,3339.4,0.4343]
[1735738956283,0.30002,3339.7,3339.6,0.30002]
[1735738956477,0.30001,3339.8,3339.7,0.3]
[1735738957576,0.425,3340.3,3339.7,0.3]
[1735738957577,3.2078,3340.5,3339.7,3.58305024]
[1735738957882,3.2078,3340.5,3340.2,0.29995]
[1735738957883,0.29996,3340.3,3340.2,0.29995]
[1735738958782,0.29997,3340.2,3340.1,0.29996]
[1735738959280,3.02698259,3340.4,3339.8,4.69643261]
[1735738959580,0.29999,3339.9,3339.8,5.44582261]
[1735738960175,0.29999,3339.9,3339.8,0.74939]
[1735738960881,0.29999,3339.9,3339.8,0.29999]
[1735738961083,0.4222,3340.0,3339.6,4.69643261]
[1735738961281,0.30001,3339.7,3339.6,4.69643261]
[1735738962380,1.17216,3340.0,3339.5,0.73842]
[1735738962381,0.30002,3339.6,3339.5,0.73842]
[1735738962578,0.72972,3339.6,3339.5,0.73842]
[1735738970093,0.30002,3339.6,3339.5,0.73842]
[1735738973903,2.27710259,3339.8,3339.4,0.4629]
[1735738974091,0.30002,3339.5,3339.4,0.4629]
[1735738974292,0.4495,3339.7,3339.3,0.30004]
[1735738974600,0.30005,3339.2,3339.1,6.02843261]
[1735738974803,2.57715259,3339.2,3339.1,4.69643261]
[1735738974991,0.30006,3339.1,3339.0,4.69643261]
[1735738975896,2.72660259,3339.2,3338.8,3.50788]
[1735738976194,0.30008,3338.9,3338.8,3.50788]
[1735738977197,0.30008,3339.0,3338.9,0.30007]
[1735738983601,0.4407,3339.3,3338.8,3.2078]
[1735738983799,0.30008,3338.9,3338.8,3.50788]
[1735738984605,0.4407,3339.3,3338.8,3.2078]
[1735738985097,0.30007,3339.1,3339.0,0.30006]
[1735738985695,0.30007,3339.1,3338.8,3.2078]
[1735738985696,0.30006,3339.2,3339.1,0.30006]
[1735738989506,0.30006,3339.2,3338.7,3.6626]
[1735738989805,0.4407,3339.3,3338.7,0.4548]
[1735738989806,0.30009,3338.8,3338.7,0.4548]
[1735738990202,0.30011,3338.6,3338.5,4.88297143]
[1735738990407,0.30011,3338.6,3338.5,0.18653882]
[1735738991206,0.30011,3338.6,3338.4,1.18962]
[1735738991401,0.445,3338.8,3338.4,0.8895]
[1735738991597,0.74509,3338.8,3338.5,0.30011]
[1735738991801,0.74509,3338.8,3338.6,0.3001]
[1735738992005,0.445,3338.8,3338.4,0.8895]
[1735738992202,0.30008,3338.9,3338.7,0.3001]
[1735738993799,3.50787,3339.0,3338.8,0.30009]
[1735738993999,3.452,3339.2,3338.9,0.428]
[1735738994198,3.452,3339.2,3339.1,0.30006]
[1735738994603,3.452,3339.2,3339.1,41.10006]
[1735738995121,3.50784,3339.4,3339.2,0.30005]
[1735738996306,3.50784,3339.4,3339.3,0.30004]
[1735738996307,3.2078,3339.4,3339.3,0.30004]
[1735738997910,0.30004,3339.3,3339.1,0.30006]
[1735738998112,3.50784,3339.4,3339.2,0.30005]
[1735738999210,0.30004,3339.4,3339.2,0.30005]
[1735738999409,3.2078,3339.4,3339.0,0.4586]
[1735738999609,0.30006,3339.1,3339.0,0.4586]
[1735739000816,0.30006,3339.1,3339.0,0.9111]
[1735739001514,0.30006,3339.1,3339.0,1.21117]
[1735739001813,0.30006,3339.1,3339.0,0.9111]
[1735739002913,0.30006,3339.1,3339.0,0.4525]
[1735739003108,0.30008,3338.9,3338.7,3.2078]
[1735739003315,0.30008,3338.9,3338.8,0.4525]
[1735739003508,0.30008,3338.9,3338.8,0.75259]
[1735739003718,0.30008,3338.9,3338.8,0.4525]
[1735739006914,0.30008,3338.9,3338.8,0.75259]
[1735739008121,0.30008,3339.0,3338.9,0.30007]
[1735739009419,0.429,3339.2,3338.8,0.4525]
[1735739009623,0.30005,3339.2,3339.1,0.30006]
[1735739010023,0.30005,3339.2,3339.1,41.10006]
[1735739010727,3.2078,3339.4,3338.8,0.4525]
[1735739010926,3.50784,3339.4,3339.3,0.30004]
[1735739011127,0.30005,3339.3,3339.2,0.30005]
[1735739012423,3.50784,3339.4,3339.3,0.30004]
[1735739015230,0.30004,3339.4,3339.3,0.30004]
[1735739015431,3.50784,3339.4,3339.3,0.30004]
[1735739016628,3.2078,3339.4,3339.3,0.30004]
[1735739017824,3.2078,3339.4,3339.3,0.75814]
[1735739018531,3.50783,3339.4,3339.3,0.75814]
[1735739018732,3.50783,3339.4,3339.3,0.4581]
[1735739019536,3.50783,3339.4,3339.3,0.75814]
[1735739026744,0.30003,3339.4,3339.3,0.75814]
[1735739039347,1.07905544,3339.6,3339.3,0.4581]
[1735739039654,0.30003,3339.5,3339.4,0.30002]
[1735739043943,0.4325,3339.8,3339.7,0.30001]
[1735739044144,0.29998,3340.1,3340.0,0.29997]
[1735739044346,0.73867,3340.2,3340.1,0.29997]
[1735739044547,0.73867,3340.2,3340.0,0.29997]
[1735739044548,0.29998,3340.1,3340.0,0.29997]
[1735739044945,0.29999,3340.0,3339.9,0.29998]
[1735739045155,0.29999,3340.0,3339.8,1.313]
[1735739045449,0.29999,3339.9,3339.8,1.61299]
[1735739046051,0.29999,3340.0,3339.9,0.29998]
[1735739046962,1.07905544,3340.1,3339.8,1.313]
[1735739047452,0.29999,3340.0,3339.9,0.29998]
[1735739050860,0.4564,3340.4,3339.8,1.313]
[1735739051054,0.29997,3340.2,3340.1,0.29996]
[1735739051253,0.4564,3340.4,3339.8,2.39205544]
[1735739051557,0.29996,3340.3,3340.2,0.29995]
[1735739053258,3.50776,3340.3,3340.2,0.29995]
[1735739053761,3.2078,3340.3,3340.2,0.29995]
[1735739054555,3.50775,3340.3,3340.2,0.29995]
[1735739055460,3.86635711,3340.3,3340.2,0.29995]
[1735739057658,3.56640711,3340.3,3339.9,40.8]
[1735739057858,0.29998,3340.1,3340.0,0.29997]
[1735739058461,0.65858711,3340.1,3340.0,0.29997]
[1735739061263,0.30001,3339.8,3339.7,0.3]
[1735739061566,0.30002,3339.7,3339.6,0.30001]
[1735739062666,0.65862711,3339.7,3339.6,0.30001]
[1735739064162,0.30002,3339.6,3339.5,3.94352]
[1735739064365,0.30002,3339.6,3339.5,0.4357]
[1735739064565,0.30003,3339.4,3339.3,0.74684]
[1735739064969,1.07905544,3339.5,3339.3,0.4468]
[1735739065177,1.37908544,3339.5,3339.4,0.30003]
[1735739065562,1.73769255,3339.5,3339.4,0.30003]
[1735739065772,0.65863711,3339.5,3339.4,0.30003]
[1735739066573,0.35860711,3339.5,3339.2,0.4286]
[1735739066864,0.35860711,3339.5,3338.7,7.04464891]
[1735739066865,1.07905544,3339.3,3338.7,7.04464891]
[1735739067062,4.58693544,3338.9,3338.7,7.50234891]
[1735739067462,4.58693544,3338.9,3338.8,40.8]
[1735739067665,4.94554255,3338.9,3338.8,40.8]
[1735739068166,4.94554255,3338.9,3338.7,0.4577]
[1735739068373,0.30009,3338.8,3338.7,0.4577]
[1735739068871,0.65869711,3338.8,3338.7,0.4577]
[1735739069667,3.86649711,3338.8,3338.7,0.4577]
[1735739070367,3.86649711,3338.8,3338.5,40.8]
[1735739070672,0.35860711,3338.7,3338.5,41.53371]
[1735739071067,0.35860711,3338.7,3338.5,41.2336]
[1735739071775,0.35860711,3338.6,3338.5,41.2336]
[1735739075667,0.35860711,3338.6,3338.5,44.74151]
[1735739078776,0.35860711,3338.6,3338.5,41.53371]
[1735739078976,0.35860711,3338.6,3338.5,44.74151]
[1735739087684,0.35860711,3338.6,3338.5,41.53371]
[1735739087884,0.35860711,3338.6,3338.5,44.74151]
[1735739092288,0.35860711,3338.6,3338.5,46.19185078]
[1735739093788,0.35860711,3338.6,3338.5,47.36985078]
[1735739095386,0.35860711,3338.6,3338.5,5.49055454]
[1735739097700,0.35860711,3338.6,3338.5,5.11951]
[1735739097883,0.35860711,3338.6,3338.5,5.49109162]
[1735739098296,0.35860711,3338.6,3338.5,5.49110592]
[1735739100791,0.35860711,3338.6,3338.5,6.08574416]
[1735739103097,0.4512,3339.1,3339.0,0.30007]
[1735739103284,0.4512,3339.1,3339.0,1.75096216]
[1735739103484,0.4512,3339.1,3339.0,42.55096216]
[1735739104289,3.6375,3339.2,3339.0,42.25089216]
[1735739104491,3.6375,3339.2,3339.1,0.67165592]
[1735739104789,3.6375,3339.2,3339.1,0.76536]
[1735739104984,4.0849,3339.2,3339.1,0.76536]
[1735739106199,0.30006,3339.1,3339.0,41.10006]
[1735739106395,0.30006,3339.1,3339.0,0.67176357]
[1735739106896,0.30006,3339.1,3339.0,0.30006]
[1735739108998,4.38496,3339.2,3339.1,0.30006]
[1735739110093,4.0849,3339.2,3339.1,0.30006]
[1735739112096,0.4297,3339.2,3339.1,0.30006]
[1735739112400,0.4297,3339.2,3339.1,1.53946042]
[1735739112601,0.4297,3339.2,3339.1,13.00087361]
[1735739114003,0.4297,3339.2,3339.1,49.104441]
[1735739115002,0.4297,3339.2,3339.1,49.10425469]
[1735739115299,0.73363,3339.5,3339.1,49.10425469]
[1735739115596,1.15623,3339.5,3339.4,0.30003]
[1735739116601,0.8562,3339.5,3339.4,0.30003]
[1735739116798,1.15622,3339.5,3339.4,0.30003]
[1735739120108,0.30004,3339.4,3339.3,0.30004]
[1735739121003,0.30004,3339.4,3339.1,46.38850797]
[1735739121004,0.30005,3339.2,3339.1,5.02076797]
[1735739121199,1.37934624,3339.2,3339.1,4.72070797]
[1735739122205,0.30007,3339.0,3338.9,3.50788]
[1735739122803,0.74227,3339.0,3338.9,3.50788]
[1735739123905,0.4213,3339.6,3338.9,4.28709624]
[1735739124113,0.4213,3339.6,3339.2,0.30004]
[1735739124114,0.30006,3339.3,3339.2,0.30004]
[1735739125306,0.9064,3339.4,3339.3,0.30004]
[1735739125510,0.4422,3339.4,3339.3,0.30004]
[1735739125928,0.4422,3339.4,3339.3,41.10004]
[1735739127221,0.30003,3339.5,3339.4,0.30003]
[1735739127507,0.30003,3339.5,3339.3,41.2251]
[1735739127508,0.30003,3339.4,3339.3,0.72514]
[1735739127712,0.30004,3339.3,3339.2,0.73425]
[1735739127911,0.30004,3339.3,3339.2,41.53425]
[1735739128111,0.30003,3339.5,3339.4,0.30002]
[1735739128312,0.73353,3339.6,3339.5,0.30002]
[1735739129415,0.30004,3339.4,3339.3,0.30003]
[1735739130113,0.30003,3339.5,3339.4,0.30002]
[1735739131518,3.50781,3339.7,3339.6,0.30002]
[1735739132716,0.4422,3340.1,3339.4,0.4632]
[1735739132912,0.29999,3339.9,3339.8,0.29998]
[1735739143721,0.29999,3339.9,3339.3,9.12910797]
[1735739143923,0.30002,3339.6,3339.5,0.30001]
[1735739144425,3.65,3340.1,3339.4,1.177]
[1735739144633,3.65,3340.1,3339.3,5.17120797]
[1735739144634,2.2795448,3340.0,3339.3,5.17120797]
[1735739144923,0.30003,3339.4,3339.3,5.17120797]
[1735739145118,0.30003,3339.4,3339.3,5.47124797]
[1735739145725,0.30003,3339.4,3339.3,0.75054]
[1735739146426,1.326,3339.6,3339.3,0.75054]
[1735739146723,0.30003,3339.5,3339.4,0.30003]
[1735739147424,0.30003,3339.5,3339.3,0.75054]
[1735739148335,0.30003,3339.5,3339.4,0.30003]
[1735739149828,1.18962,3339.6,3339.5,0.30002]
[1735739150127,0.30002,3339.6,3339.5,0.30002]
[1735739150531,0.30003,3339.5,3339.4,0.30003]
[1735739150727,0.30003,3339.5,3339.4,0.74473]
[1735739152628,0.30003,3339.5,3339.4,0.4447]
[1735739152825,0.30003,3339.5,3339.4,0.74473]
[1735739153022,0.30002,3339.6,3339.4,0.74473]
[1735739153847,3.2078,3339.7,3339.4,0.74473]
[1735739154129,0.30002,3339.5,3339.4,0.74473]
[1735739154824,3.2078,3339.7,3339.4,0.74473]
[1735739155036,0.30002,3339.6,3339.5,0.30002]
[1735739155329,3.2078,3339.7,3339.4,0.4447]
[1735739155631,0.30004,3339.3,3339.2,41.53424]
[1735739155930,0.30004,3339.3,3339.2,41.97154]
[1735739156722,0.30006,3339.1,3339.0,5.02076797]
[1735739156933,0.30006,3339.1,3339.0,0.30006]
[1735739157231,0.30006,3339.1,3339.0,40.8]
[1735739157728,0.30007,3339.0,3338.9,8.22857797]
[1735739157930,0.76227,3339.0,3338.9,8.22857797]
[1735739158132,0.4622,3339.0,3338.9,49.02857797]
[1735739158430,0.4622,3339.0,3338.9,44.30787]
[1735739158629,0.76227,3339.0,3338.9,44.30787]
[1735739159231,0.76227,3339.0,3338.9,41.10007]
[1735739159725,0.76227,3339.0,3338.7,0.30009]
[1735739159726,0.4622,3339.0,3338.7,0.30009]
[1735739159921,0.30009,3338.8,3338.7,0.30009]
[1735739160320,0.30009,3338.8,3338.7,40.8]
[1735739160825,0.30009,3338.8,3338.7,41.1001]
[1735739161130,0.30007,3339.1,3339.0,0.30006]
[1735739161730,3.6492,3339.3,3338.8,1.3293]
[1735739161930,3.2078,3339.3,3339.2,0.30005]
[1735739162118,0.30003,3339.5,3339.4,0.30003]
[1735739162526,0.4508,3339.6,3338.9,4.3848]
[1735739162735,0.30005,3339.3,3339.2,0.30004]
[1735739163629,0.30005,3339.3,3339.0,0.30006]
[1735739163630,0.30007,3339.1,3339.0,0.30006]
[1735739164832,0.894,3339.2,3338.9,1.177]
[1735739165133,0.30007,3339.0,3338.9,1.47707]
[1735739165433,0.30009,3338.7,3338.6,5.02080797]
[1735739166133,0.30009,3338.7,3338.6,0.3001]
[1735739166632,0.73119,3338.7,3338.6,0.3001]
[1735739168244,3.2078,3338.9,3338.8,0.30009]
[1735739168731,3.2078,3338.9,3338.8,41.10009]
[1735739169131,3.2078,3339.4,3338.8,44.2565448]
[1735739169333,3.50784,3339.4,3339.3,0.30003]
[1735739171038,3.2078,3339.4,3339.3,0.30003]
[1735739171833,3.50783,3339.4,3339.3,0.30003]
[1735739173234,3.2078,3339.4,3339.3,0.30003]
[1735739174836,3.50783,3339.4,3339.3,0.30003]
[1735739175735,3.2078,3339.4,3339.3,0.30003]
[1735739176634,1.19964,3340.1,3339.1,2.2795448]
[1735739176635,3.2078,3339.9,3339.1,2.2795448]
[1735739176831,3.50779,3339.9,3339.8,0.29999]
[1735739177441,0.3,3339.8,3339.7,0.3]
[1735739177835,3.50779,3339.9,3339.8,0.3]
[1735739178040,3.2078,3339.9,3339.8,0.3]
[1735739178243,3.50779,3339.9,3339.8,0.3]
[1735739178647,3.2078,3339.9,3339.8,0.3]
[1735739180551,3.2078,3339.9,3339.8,2.5795448]
[1735739181436,3.2078,3339.9,3339.8,43.3795448]
[1735739182443,3.2078,3339.9,3339.8,41.1]
[1735739184447,3.2078,3339.9,3339.8,0.3]
[1735739185047,0.29998,3340.0,3339.7,40.8]
[1735739185349,0.29998,3340.0,3339.9,0.29999]
[1735739185650,0.29998,3340.1,3340.0,0.29997]
[1735739186163,0.29999,3340.0,3339.9,0.29998]
[1735739186360,0.29999,3339.9,3339.8,0.29999]
[1735739189161,3.50776,3340.2,3340.1,0.29997]
[1735739191057,3.2078,3340.2,3340.1,0.29997]
[1735739191261,3.2078,3340.2,3340.1,2.5795148]
[1735739194862,3.2078,3340.2,3340.1,0.29997]
[1735739196665,3.2078,3340.6,3340.1,2.2795448]
[1735739196962,0.29992,3340.7,3340.6,0.29992]
[1735739197555,1.15271,3340.8,3340.7,0.29991]
[1735739197955,0.29993,3340.7,3340.6,0.29992]
[1735739203171,0.29993,3340.6,3340.5,0.29992]
[1735739206663,0.8528,3340.8,3340.2,5.6956]
[1735739206865,0.29992,3340.7,3340.6,0.29991]
[1735739220683,0.73091,3340.8,3340.7,0.29991]
[1735739221676,0.431,3340.8,3340.3,40.8]
[1735739221882,0.75093,3340.7,3340.6,0.29992]
[1735739223787,0.73091,3340.8,3340.7,0.29991]
[1735739224083,3.50769,3341.0,3340.9,0.2999]
[1735739224290,3.2078,3341.0,3340.9,0.2999]
[1735739226292,3.50769,3341.0,3340.9,0.2999]
[1735739226787,3.2078,3341.0,3340.9,0.2999]
[1735739227095,3.50764,3341.6,3341.5,0.29983]
[1735739227388,3.2078,3341.6,3341.5,0.29983]
[1735739228387,0.4507,3342.1,3341.7,0.29983]
[1735739228388,0.29982,3341.8,3341.7,0.29983]
[1735739228583,0.29981,3341.9,3341.8,0.29981]
[1735739230186,3.2078,3342.1,3341.2,43.9789448]
[1735739230386,0.29983,3341.7,3341.6,0.29982]
[1735739230590,1.0493,3342.0,3341.5,0.29984]
[1735739230791,0.29983,3341.7,3341.6,0.29983]
[1735739231096,0.29982,3341.8,3341.7,0.29982]
[1735739231291,0.29982,3341.9,3341.8,0.29981]
[1735739231589,0.29982,3341.8,3341.7,0.29982]
[1735739234789,0.2998,3342.0,3341.9,0.2998]
[1735739235383,3.2078,3342.1,3341.7,0.9034]
[1735739235589,3.2078,3342.1,3342.0,0.2998]
[1735739235894,0.4382,3342.6,3342.0,3.2078]
[1735739236192,0.29973,3342.8,3342.4,3.2078]
[1735739236490,0.29974,3342.7,3342.6,0.29974]
[1735739236993,0.29974,3342.6,3342.5,1.21225]
[1735739237291,0.4239,3342.9,3342.5,0.9125]
[1735739237990,0.4239,3342.9,3342.5,1.21225]
[1735739237991,0.29974,3342.7,3342.5,1.21225]
[1735739238194,0.29974,3342.6,3342.5,1.21225]
[1735739238698,0.29974,3342.7,3342.6,0.29974]
[1735739240489,0.73791,3343.0,3342.6,0.29974]
[1735739240786,0.29971,3343.0,3342.9,0.29972]
[1735739241187,3.2078,3343.2,3342.9,0.29972]
[1735739241484,0.29964,3343.8,3343.6,0.29965]
[1735739241688,0.29965,3343.7,3343.5,3.50746]
[1735739242106,5.9390448,3343.6,3342.2,1.176]
[1735739242387,0.29972,3342.9,3342.7,0.29974]
[1735739242595,0.8782,3342.8,3342.7,0.29974]
[1735739243587,0.29972,3342.9,3342.7,0.29974]
[1735739243792,0.29972,3342.9,3342.4,0.4352]
[1735739243793,3.2078,3343.1,3342.4,2.7147448]
[1735739244299,0.29972,3342.9,3342.7,0.29973]
[1735739244498,0.29971,3343.0,3342.8,0.29973]
[1735739244695,3.2078,3343.1,3342.9,0.4484]
[1735739244991,0.29971,3343.0,3342.9,0.4484]
[1735739245597,3.50751,3343.1,3342.9,0.74811]
[1735739246892,0.8782,3343.5,3343.4,0.29967]
[1735739247291,3.2078,3343.7,3343.6,0.29965]
[1735739247494,3.2078,3343.7,3343.6,2.2795448]
[1735739247795,0.8766,3344.2,3344.0,0.29961]
[1735739247989,0.8766,3344.2,3343.8,1.175]
[1735739248295,0.29964,3343.8,3343.7,1.175]
[1735739248996,0.29965,3343.6,3343.5,1.6318]
[1735739249188,0.4516,3343.7,3343.4,40.8]
[1735739249388,0.4516,3343.7,3343.2,1.6318]
[1735739249389,0.29968,3343.3,3343.2,1.6318]
[1735739249612,0.4447,3343.5,3342.7,3.8957448]
[1735739249894,0.29972,3342.9,3342.8,0.4568]
[1735739251495,0.4516,3343.2,3342.5,3.2078]
[1735739251699,0.29974,3342.6,3342.5,1.47475]
[1735739251901,0.29974,3342.7,3342.6,0.29974]
[1735739252099,0.29973,3342.8,3342.6,0.29974]
[1735739252398,0.4608,3342.7,3342.6,0.29974]
[1735739253505,0.29974,3342.6,3342.5,0.29975]
[1735739253898,0.4608,3342.7,3342.4,1.612]
[1735739254099,0.76054,3342.7,3342.6,0.29974]
[1735739255304,0.4608,3342.7,3342.6,0.29974]
[1735739257502,0.76054,3342.7,3342.6,0.29974]
[1735739260905,0.4608,3342.7,3342.6,0.29974]
[1735739262104,0.29973,3342.8,3342.7,0.29974]
[1735739263403,0.29973,3342.9,3342.8,0.29972]
[1735739263603,0.4332,3343.2,3342.5,0.4298]
[1735739263803,0.72104,3342.8,3342.7,0.29973]
[1735739276713,0.29974,3342.7,3342.6,0.29974]
[1735739278811,0.29974,3342.6,3342.5,0.72955]
[1735739279011,0.29974,3342.6,3342.5,1.10078774]
[1735739280514,0.29974,3342.6,3342.5,0.80103774]
[1735739280714,0.29975,3342.5,3342.4,0.437]
[1735739280919,3.93915,3342.5,3342.4,0.437]
[1735739281116,0.73135,3342.5,3342.4,0.437]
[1735739281413,0.73135,3342.5,3342.4,0.80866579]
[1735739282419,0.73135,3342.5,3342.4,0.80849226]
[1735739282615,0.73135,3342.5,3342.4,1.10825226]
[1735739284320,0.4316,3342.5,3342.4,1.10825226]
[1735739284619,0.29975,3342.6,3342.5,0.29974]
[1735739284821,0.4213,3342.8,3342.5,0.80209226]
[1735739285016,0.72104,3342.8,3342.7,0.29974]
[1735739285227,0.29974,3342.7,3342.6,0.29974]
[1735739285724,0.4213,3342.8,3342.4,0.437]
[1735739285921,0.29975,3342.5,3342.4,0.437]
[1735739286115,0.29975,3342.5,3342.4,0.73676]
[1735739286317,0.29975,3342.7,3342.6,0.29974]
[1735739287626,0.4213,3342.8,3342.4,0.437]
[1735739287825,0.29975,3342.5,3342.4,0.73676]
[1735739288726,0.29975,3342.5,3342.4,0.437]
[1735739289515,0.29975,3342.5,3342.3,0.29977]
[1735739289821,1.18086,3342.4,3342.3,0.29977]
[1735739290229,0.29978,3342.3,3342.2,0.29978]
[1735739291726,0.29977,3342.4,3342.3,0.29977]
[1735739292219,0.29976,3342.6,3342.5,0.29975]
[1735739296436,0.4552,3342.8,3342.4,0.463]
[1735739296637,0.29973,3342.8,3342.7,0.29974]
[1735739297239,3.50752,3342.9,3342.8,0.29973]
[1735739298434,3.452,3343.2,3342.8,0.67091403]
[1735739298639,3.452,3343.2,3343.1,0.2997]
[1735739298844,0.29968,3343.3,3343.2,0.29969]
[1735739300641,0.2997,3343.2,3343.1,0.29969]
[1735739300848,0.29969,3343.3,3343.2,0.29968]
[1735739303640,3.6632,3343.5,3343.0,0.4543]
[1735739303844,0.29968,3343.4,3343.3,0.29967]
[1735739304046,0.29969,3343.3,3343.2,0.29969]
[1735739305554,3.6632,3343.5,3343.0,0.754]
[1735739305555,0.2997,3343.1,3343.0,0.754]
[1735739306043,0.2997,3343.1,3343.0,1.1928]
[1735739308043,3.6632,3343.5,3343.0,0.8931]
[1735739308348,0.29969,3343.2,3343.1,0.2997]
[1735739313150,0.29968,3343.4,3343.3,0.29967]
[1735739314651,3.2078,3343.6,3343.2,1.0764833]
[1735739314947,0.29967,3343.5,3343.4,0.29967]
[1735739316251,0.29965,3343.7,3343.4,41.8764833]
[1735739316447,0.29965,3343.6,3343.5,0.73266]
[1735739317447,0.29965,3343.7,3343.6,0.29965]
[1735739317848,0.29965,3343.6,3343.5,0.73266]
[1735739318341,0.29965,3343.6,3343.5,0.433]
[1735739318748,0.29965,3343.6,3343.5,0.73266]
[1735739320552,0.29965,3343.6,3343.5,0.433]
[1735739320750,1.0764833,3343.7,3342.9,7.92850797]
[1735739320950,0.2997,3343.2,3343.1,0.29969]
[1735739321353,0.7597,3343.2,3343.1,0.29969]
[1735739321556,0.46,3343.2,3342.9,6.26199127]
[1735739321756,0.29971,3343.1,3343.0,0.2997]
[1735739321972,0.75969,3343.2,3343.1,0.2997]
[1735739324157,0.29969,3343.2,3343.1,1.3761833]
[1735739324351,0.29969,3343.2,3343.1,0.2997]
[1735739325851,3.2078,3343.3,3342.9,0.4648]
[1735739325852,3.50749,3343.3,3343.2,0.29969]
[1735739326259,0.29969,3343.3,3343.2,0.29969]
[1735739337271,0.4379,3343.4,3343.1,0.4633]
[1735739337468,0.4379,3343.4,3343.3,0.29968]
[1735739337469,0.73758,3343.4,3343.3,0.29968]
[1735739337865,0.74417,3343.5,3343.1,0.4633]
[1735739338165,0.74417,3343.5,3343.4,0.29967]
[1735739341765,0.29966,3343.6,3343.5,0.29965]
[1735739344871,0.72755,3343.7,3343.2,4.72070797]
[1735739345066,0.72755,3343.7,3343.6,0.29965]
[1735739347172,0.72755,3343.7,3343.5,0.4228]
[1735739347173,0.29965,3343.6,3343.5,0.4228]
[1735739347372,1.37591656,3343.6,3343.5,0.4228]
[1735739347870,1.07626656,3343.6,3343.4,4.72070797]
[1735739348067,0.29966,3343.5,3343.4,4.72070797]
[1735739348770,4.28406656,3343.6,3343.2,0.72989]
[1735739348972,0.29968,3343.3,3343.2,0.72989]
[1735739349168,3.2078,3343.6,3343.2,1.50646656]
[1735739349370,0.72755,3343.7,3343.5,1.07626656]
[1735739349576,0.72755,3343.7,3343.6,0.29965]
[1735739350068,1.50416656,3343.7,3343.2,0.4302]
[1735739350270,0.29968,3343.4,3343.3,0.29968]
[1735739351178,0.29967,3343.5,3343.4,0.29966]
[1735739353379,0.29967,3343.5,3343.4,0.67100395]
[1735739353979,0.29967,3343.5,3343.4,0.29966]
[1735739361282,0.29967,3343.4,3343.3,5.44848797]
[1735739361483,0.73647,3343.4,3343.3,5.44848797]
[1735739361878,0.73647,3343.4,3343.3,5.81989754]
[1735739362182,0.73647,3343.4,3343.3,1.09918957]
[1735739362986,0.73647,3343.4,3343.3,5.81989754]
[1735739363489,1.81273656,3343.4,3343.3,4.72070797]
[1735739364080,0.29968,3343.3,3343.2,0.4302]
[1735739365483,0.29968,3343.3,3343.2,0.8601]
[1735739369494,0.4368,3343.4,3343.2,0.4302]
[1735739369695,0.4368,3343.4,3343.3,0.29968]
[1735739369992,0.73647,3343.4,3343.3,0.29968]
[1735739370393,3.2078,3343.6,3343.3,1.07626656]
[1735739370594,3.8908,3343.9,3343.5,1.07626656]
[1735739370894,0.29964,3343.8,3343.7,0.29964]
[1735739371197,0.4388,3343.9,3343.7,0.29965]
[1735739371400,0.73843,3343.9,3343.7,0.29965]
[1735739371594,0.4388,3343.9,3343.7,0.29965]
[1735739371896,0.29966,3343.6,3343.5,5.02036797]
[1735739372292,0.29966,3343.6,3343.5,7.34430891]
[1735739372799,0.29965,3343.7,3343.6,0.29966]
[1735739373298,0.4449,3343.8,3343.5,8.12091547]
[1735739373507,0.74454,3343.8,3343.7,0.29965]
[1735739377701,0.29964,3343.8,3343.7,0.29965]
[1735739382922,0.29966,3343.7,3343.6,0.29965]
[1735739384410,0.29963,3343.9,3343.8,0.29964]
[1735739384617,3.2078,3344.0,3343.8,1.07626656]
[1735739384805,3.50742,3344.0,3343.9,0.74643]
[1735739385004,3.50742,3344.0,3343.9,1.20683]
[1735739386008,3.50742,3344.0,3343.9,1.65653]
[1735739386409,3.50742,3344.0,3343.9,2.73279656]
[1735739388208,3.50742,3344.0,3343.9,1.3569]
[1735739388810,3.50742,3344.0,3343.9,0.9101]
[1735739389911,3.50742,3344.0,3343.9,0.4497]
[1735739400835,3.2078,3344.0,3343.6,0.4366]
[1735739401127,3.2078,3344.0,3343.4,4.71810561]
[1735739401128,0.29966,3343.5,3343.4,4.71810561]
[1735739401322,0.29966,3343.5,3343.4,5.01777561]
[1735739401725,1.07626656,3343.5,3343.3,0.4219]
[1735739401923,0.29969,3343.2,3343.1,4.71810561]
[1735739402126,4.58375656,3343.2,3343.1,4.71810561]
[1735739402723,4.28406656,3343.2,3342.9,0.9279]
[1735739402925,1.37597656,3343.0,3342.9,0.9279]
[1735739403328,1.37597656,3343.0,3342.5,45.51810561]
[1735739403329,1.07626656,3343.0,3342.5,45.51810561]
[1735739403525,0.29974,3342.7,3342.6,0.466]
[1735739404017,0.29976,3342.4,3342.3,7.04464891]
[1735739404218,3.50756,3342.4,3342.3,0.466]
[1735739404421,3.50756,3342.4,3342.3,41.266]
[1735739406528,3.50756,3342.4,3342.3,40.8]
[1735739408629,5.48323907,3342.4,3342.0,0.4452]
[1735739408830,0.9094,3342.3,3341.7,0.463]
[1735739409030,3.50762,3341.8,3341.7,0.9014]
[1735739411133,0.74937,3342.6,3341.7,0.9014]
[1735739411134,3.2078,3343.0,3341.7,8.17683907]
[1735739411436,3.452,3343.6,3342.8,3.2078]
[1735739411639,0.29971,3343.0,3342.9,40.8]
[1735739412938,0.8848,3343.2,3342.8,3.2078]